bitfinex-derivatives/quotes_BTCF0:USTF0_20251103
["timestamp","ask_amount","ask_price","bid_price","bid_amount"]
[1762162572085,0.0223,107380.0,107370.0,0.6715539]
[1762162572290,0.04498,107380.0,107370.0,0.4794962]
[1762162573594,0.04498,107380.0,107370.0,0.4804962]
[1762162574094,0.04398,107380.0,107370.0,0.4804962]
[1762162574290,0.04398,107380.0,107370.0,0.4824962]
[1762162574495,0.38924861,107390.0,107380.0,0.1186875]
[1762162574797,0.05803,107390.0,107380.0,0.4794875]
[1762162575185,0.06746279,107390.0,107380.0,0.4794875]
[1762162575788,0.06746279,107390.0,107380.0,0.38634]
[1762162575991,0.06846279,107390.0,107380.0,0.38634]
[1762162576196,0.06846279,107390.0,107380.0,0.4794874]
[1762162578192,0.05903,107390.0,107380.0,0.4794874]
[1762162578398,0.06859867,107390.0,107380.0,0.57113597]
[1762162579098,0.05903,107390.0,107380.0,0.57113597]
[1762162579396,0.001,107390.0,107380.0,0.57451597]
[1762162579695,0.04574,107390.0,107380.0,0.57451597]
[1762162579889,0.0594,107390.0,107380.0,0.57113597]
[1762162580089,0.0594,107390.0,107380.0,0.57113607]
[1762162581699,0.0594,107390.0,107380.0,0.89297607]
[1762162581700,0.001,107390.0,107380.0,0.89297607]
[1762162581993,0.0584,107420.0,107410.0,0.1186615]
[1762162582194,0.38024,107420.0,107410.0,0.57111007]
[1762162583199,0.45649376,107420.0,107410.0,0.4794615]
[1762162583499,0.06763457,107420.0,107410.0,0.57111007]
[1762162583697,0.07063457,107420.0,107410.0,0.57111007]
[1762162584099,0.0614,107420.0,107410.0,0.57111007]
[1762162584291,0.0614,107420.0,107410.0,0.4794615]
[1762162584691,0.0674,107420.0,107410.0,0.38634]
[1762162585095,0.0674,107420.0,107410.0,0.02554]
[1762162585496,0.07694445,107420.0,107410.0,0.02554]
[1762162587899,0.07694445,107420.0,107410.0,0.4794616]
[1762162589400,0.07694445,107420.0,107410.0,0.5939688]
[1762162593006,0.0674,107420.0,107410.0,0.5939688]
[1762162593211,0.009,107420.0,107410.0,0.5973488]
[1762162594010,0.009,107420.0,107410.0,0.9191088]
[1762162595100,0.05712,107440.0,107430.0,0.1186441]
[1762162595305,0.06663396,107440.0,107430.0,0.5939513]
[1762162595606,0.06663396,107440.0,107430.0,0.9547513]
[1762162595810,0.05712,107440.0,107430.0,0.9547513]
[1762162596312,0.05912,107440.0,107430.0,0.9757513]
[1762162596613,0.05912,107440.0,107430.0,1.2975113]
[1762162596815,0.005,107440.0,107430.0,1.3425113]
[1762162597115,0.06207,107440.0,107430.0,1.3395113]
[1762162600413,0.005,107440.0,107430.0,1.3395113]
[1762162603518,0.39111453,107450.0,107440.0,0.118635]
[1762162603718,0.39111453,107450.0,107440.0,0.02554]
[1762162604420,0.48267335,107450.0,107440.0,0.11709882]
[1762162605116,0.04426,107440.0,107430.0,0.90076232]
[1762162605418,0.05817,107440.0,107430.0,0.90076232]
[1762162605619,0.05817,107440.0,107430.0,0.89776232]
[1762162605820,0.05817,107440.0,107430.0,0.79965882]
[1762162606028,0.05817,107440.0,107430.0,0.89276242]
[1762162606822,0.05817,107440.0,107430.0,0.79965882]
[1762162607028,0.05817,107440.0,107430.0,0.7081]
[1762162607225,0.05817,107440.0,107430.0,0.79965882]
[1762162607724,0.05817,107440.0,107430.0,0.89276242]
[1762162608526,0.05817,107440.0,107430.0,0.8012036]
[1762162608823,0.05817,107440.0,107430.0,0.57100242]
[1762162609332,0.05817,107440.0,107430.0,0.47789882]
[1762162610135,0.05817,107440.0,107430.0,0.38634]
[1762162610436,0.05817,107440.0,107430.0,0.47789882]
[1762162611531,0.05817,107440.0,107430.0,0.57100252]
[1762162612433,0.04426,107440.0,107430.0,0.57100252]
[1762162612739,0.05817,107440.0,107430.0,0.57100252]
[1762162616539,0.05817,107440.0,107430.0,0.47789882]
[1762162616739,0.05817,107440.0,107430.0,0.4794439]
[1762162616936,0.05817,107440.0,107430.0,0.57100272]
[1762162618939,0.02242,107440.0,107430.0,0.57100272]
[1762162619743,0.02242,107440.0,107430.0,0.66256154]
[1762162619934,0.02242,107440.0,107430.0,0.57100272]
[1762162620238,0.04426,107440.0,107430.0,0.57100272]
[1762162620840,0.05817,107440.0,107430.0,0.57100232]
[1762162622641,0.05817,107440.0,107430.0,0.47789882]
[1762162623343,0.05817,107440.0,107430.0,0.57100232]
[1762162623648,0.05817,107440.0,107430.0,0.4794435]
[1762162623843,0.05817,107440.0,107430.0,0.57100232]
[1762162624240,0.24128764,107440.0,107430.0,0.38634]
[1762162624439,0.24128764,107440.0,107430.0,0.02554]
[1762162624642,0.05817,107430.0,107420.0,0.01277]
[1762162624842,0.05817,107420.0,107410.0,0.47789882]
[1762162625042,0.14972882,107420.0,107410.0,0.47789882]
[1762162625746,0.14972882,107420.0,107410.0,0.11709882]
[1762162626246,0.14972882,107420.0,107410.0,0.38634]
[1762162626847,0.24128764,107420.0,107410.0,0.3608]
[1762162627144,0.05817,107410.0,107400.0,0.47789882]
[1762162627448,0.47132882,107410.0,107400.0,0.47789882]
[1762162627648,0.37977,107410.0,107400.0,0.57102842]
[1762162628648,0.38977,107410.0,107400.0,0.57102842]
[1762162628946,0.38977,107410.0,107400.0,0.47789882]
[1762162629551,0.48132882,107410.0,107400.0,0.38634]
[1762162629745,0.48132882,107410.0,107400.0,0.47789882]
[1762162630051,0.48132882,107410.0,107400.0,0.38634]
[1762162630252,0.38977,107410.0,107400.0,0.47789882]
[1762162630452,0.48132882,107410.0,107400.0,0.47789882]
[1762162630746,0.5572918,107410.0,107400.0,0.47789882]
[1762162631052,0.5572918,107410.0,107400.0,0.01277]
[1762162631251,0.56667033,107410.0,107400.0,0.02554]
[1762162631949,0.05564,107400.0,107390.0,0.47789882]
[1762162632450,0.05564,107400.0,107390.0,0.57103712]
[1762162634052,0.06564,107400.0,107390.0,0.57103712]
[1762162638749,0.03124,107400.0,107390.0,0.57103712]
[1762162638954,0.05291,107400.0,107390.0,0.57103712]
[1762162639155,0.06564,107400.0,107390.0,0.57103712]
[1762162644354,0.05564,107390.0,107380.0,0.38634]
[1762162644559,0.05564,107390.0,107380.0,0.66260514]
[1762162644755,0.05564,107390.0,107380.0,0.57104632]
[1762162644956,0.05564,107390.0,107380.0,0.47789882]
[1762162645158,0.05564,107390.0,107380.0,0.56945764]
[1762162645458,0.05564,107390.0,107380.0,0.47789882]
[1762162646160,0.05564,107390.0,107380.0,0.56945764]
[1762162646556,0.05564,107390.0,107380.0,0.66260504]
[1762162647058,0.06564,107390.0,107380.0,0.66260504]
[1762162647859,0.06564,107390.0,107380.0,0.56945764]
[1762162649860,0.06564,107390.0,107380.0,0.66260474]
[1762162650360,0.06564,107390.0,107380.0,0.57113575]
[1762162653562,0.06564,107390.0,107380.0,0.4794871]
[1762162653754,0.06564,107390.0,107380.0,0.47798865]
[1762162654863,0.06564,107390.0,107380.0,0.57113605]
[1762162655760,0.06564,107390.0,107380.0,0.47798865]
[1762162656159,0.06564,107390.0,107380.0,0.57113615]
[1762162659870,0.05291,107390.0,107380.0,0.57113615]
[1762162662067,0.03124,107390.0,107380.0,0.57451615]
[1762162662373,0.05365,107390.0,107380.0,0.57451615]
[1762162662974,0.03124,107390.0,107380.0,0.57451615]
[1762162663174,0.01,107390.0,107380.0,0.57451615]
[1762162670176,0.14282151,107410.0,107400.0,0.1186701]
[1762162670376,0.14282151,107410.0,107400.0,0.57111875]
[1762162670870,0.01391,107420.0,107410.0,0.1058914]
[1762162671077,0.37916,107420.0,107410.0,0.4794614]
[1762162671782,0.37916,107420.0,107410.0,0.38634]
[1762162671982,0.45396915,107420.0,107410.0,0.38634]
[1762162673684,0.46396915,107420.0,107410.0,0.38634]
[1762162673885,0.46396915,107420.0,107410.0,0.4794614]
[1762162673886,0.4733534,107420.0,107410.0,0.4794614]
[1762162674781,0.03116,107420.0,107410.0,0.57111005]
[1762162674985,0.01,107420.0,107410.0,0.89579005]
[1762162676383,0.05357,107420.0,107410.0,0.89579005]
[1762162676585,0.06635,107420.0,107410.0,0.89279005]
[1762162677188,0.03116,107420.0,107410.0,0.89279005]
[1762162677489,0.01,107420.0,107410.0,0.89279005]
[1762162677788,0.03116,107420.0,107410.0,0.89279005]
[1762162677989,0.03116,107420.0,107410.0,0.70798]
[1762162677990,0.06635,107420.0,107410.0,0.70798]
[1762162678485,0.05635,107420.0,107410.0,0.38634]
[1762162678682,0.06635,107420.0,107410.0,0.38634]
[1762162680492,0.06635,107420.0,107410.0,0.4794614]
[1762162680693,0.06635,107420.0,107410.0,0.57111005]
[1762162681290,0.06635,107420.0,107410.0,0.38634]
[1762162681986,0.47963865,107420.0,107410.0,0.3608]
[1762162682187,0.05635,107410.0,107400.0,0.01277]
[1762162682383,0.05635,107400.0,107390.0,0.38634]
[1762162682585,0.05635,107400.0,107390.0,0.4794788]
[1762162682788,0.05635,107400.0,107380.0,0.38634]
[1762162682789,0.04357,107390.0,107380.0,0.38634]
[1762162682988,0.05635,107390.0,107380.0,0.38634]
[1762162683184,0.14799865,107390.0,107380.0,0.3608]
[1762162683396,0.14799865,107390.0,107380.0,0.4794871]
[1762162683598,0.05635,107390.0,107380.0,0.4794871]
[1762162683792,0.05635,107390.0,107380.0,0.38634]
[1762162684492,0.05635,107390.0,107370.0,0.38645797]
[1762162684493,0.05635,107380.0,107370.0,0.38645797]
[1762162685092,0.37799,107380.0,107370.0,0.38645797]
[1762162685492,0.46963865,107380.0,107370.0,0.38645797]
[1762162685692,0.37799,107380.0,107370.0,0.37368797]
[1762162685893,0.37799,107380.0,107370.0,0.36091797]
[1762162686193,0.46963865,107380.0,107370.0,0.36091797]
[1762162686393,0.47163865,107380.0,107370.0,0.36091797]
[1762162686701,0.47163865,107380.0,107370.0,0.37368797]
[1762162687593,0.47663865,107380.0,107370.0,0.36091797]
[1762162688101,0.47663865,107380.0,107370.0,0.38645797]
[1762162688300,0.38499,107380.0,107370.0,0.38645797]
[1762162689802,0.38499,107380.0,107370.0,0.02565797]
[1762162689991,0.38499,107380.0,107370.0,0.38645797]
[1762162690197,0.38499,107380.0,107370.0,0.02565797]
[1762162690902,0.38499,107380.0,107370.0,0.00011797]
[1762162691104,0.47663865,107380.0,107370.0,0.00011797]
[1762162693798,0.47663865,107380.0,107370.0,0.01288797]
[1762162694299,0.47663865,107380.0,107370.0,0.02565797]
[1762162694498,0.38499,107380.0,107370.0,0.02565797]
[1762162695000,0.38499,107380.0,107370.0,0.00011797]
[1762162695502,0.47663865,107380.0,107370.0,0.02565797]
[1762162695903,0.38499,107380.0,107370.0,0.38645797]
[1762162696403,0.38499,107380.0,107370.0,0.02565797]
[1762162697099,0.05874,107370.0,107360.0,0.3608]
[1762162697305,0.15038865,107370.0,107360.0,0.3608]
[1762162697604,0.15038865,107370.0,107360.0,0.37369]
[1762162697899,0.15038865,107370.0,107360.0,0.38658]
[1762162697900,0.05874,107370.0,107360.0,0.38658]
[1762162698404,0.05882117,107370.0,107360.0,0.38958]
[1762162699002,0.05882117,107370.0,107360.0,0.38658]
[1762162699806,0.05982117,107370.0,107360.0,0.38658]
[1762162700809,0.05982117,107370.0,107360.0,0.4797449]
[1762162701104,0.05982117,107370.0,107360.0,0.57139355]
[1762162701813,0.38178117,107370.0,107360.0,0.57139355]
[1762162702003,0.38174117,107370.0,107360.0,0.57139355]
[1762162703212,0.38174117,107370.0,107360.0,0.47822865]
[1762162703713,0.38174117,107370.0,107360.0,0.57139345]
[1762162704708,0.38174117,107370.0,107360.0,0.47822865]
[1762162705113,0.38174117,107370.0,107360.0,0.02578]
[1762162705310,0.45011982,107370.0,107350.0,0.3608]
[1762162705514,0.05874,107360.0,107350.0,0.38658]
[1762162706112,0.15038865,107360.0,107350.0,0.02578]
[1762162706306,0.04587,107350.0,107340.0,0.3767642]
[1762162706511,0.05945061,107350.0,107340.0,0.3896542]
[1762162706712,0.38133061,107350.0,107340.0,0.3896542]
[1762162708117,0.38133061,107350.0,107340.0,0.3906542]
[1762162708617,0.38133061,107350.0,107340.0,0.0298542]
[1762162709820,0.38333061,107350.0,107340.0,0.0298542]
[1762162710122,0.38333061,107350.0,107340.0,0.0288542]
[1762162710323,0.48006151,107350.0,107340.0,0.1205851]
[1762162710621,0.48006151,107350.0,107340.0,0.0288542]
[1762162710818,0.48006151,107350.0,107340.0,0.1205851]
[1762162711014,0.48006151,107350.0,107340.0,0.0159642]
[1762162711321,0.84086151,107350.0,107340.0,0.0159642]
[1762162712115,0.48006151,107350.0,107340.0,0.0288542]
[1762162712322,0.48006151,107350.0,107340.0,0.1205851]
[1762162712620,0.48006151,107350.0,107340.0,0.0288542]
[1762162712821,0.55290004,107350.0,107340.0,0.0288542]
[1762162713821,0.55290004,107350.0,107340.0,0.1205851]
[1762162714220,0.55290004,107350.0,107340.0,0.0030742]
[1762162714422,0.55290004,107350.0,107340.0,0.0159642]
[1762162714720,0.55290004,107350.0,107340.0,0.0288542]
[1762162716123,0.55290004,107350.0,107340.0,0.1205851]
[1762162716622,0.55290004,107350.0,107340.0,0.0288542]
[1762162716824,0.55290004,107350.0,107340.0,0.0030742]
[1762162719526,0.91370004,107350.0,107340.0,0.0030742]
[1762162722521,0.91370004,107350.0,107340.0,0.0288542]
[1762162723026,0.91370004,107350.0,107340.0,0.0030742]
[1762162723928,0.55290004,107350.0,107340.0,0.0159642]
[1762162724627,0.55290004,107350.0,107330.0,0.3608]
[1762162724628,0.05683,107340.0,107330.0,0.3608]
[1762162724925,0.05683,107320.0,107310.0,0.4859284]
[1762162725119,0.37888972,107320.0,107310.0,0.5776593]
[1762162725321,0.05692972,107320.0,107310.0,0.5776593]
[1762162725725,9.972e-05,107320.0,107310.0,0.6728802]
[1762162726227,0.04353972,107320.0,107310.0,0.6728802]
[1762162726427,0.04353972,107320.0,107310.0,0.6738802]
[1762162726621,0.05692972,107320.0,107310.0,0.6703902]
[1762162726825,0.04353972,107320.0,107310.0,0.5786593]
[1762162727026,0.04353972,107320.0,107310.0,0.5796593]
[1762162727929,0.05692972,107320.0,107310.0,0.5796593]
[1762162728331,0.05692972,107320.0,107310.0,0.39472]
[1762162728532,0.05692972,107320.0,107310.0,0.5796592]
[1762162730233,0.05692972,107320.0,107310.0,0.4879283]
[1762162730429,9.972e-05,107320.0,107310.0,0.6713901]
[1762162730626,9.972e-05,107320.0,107310.0,0.6748801]
[1762162731126,9.972e-05,107320.0,107310.0,0.68412349]
[1762162731634,9.972e-05,107320.0,107310.0,0.6748801]
[1762162733433,9.972e-05,107320.0,107310.0,0.68439583]
[1762162733732,9.972e-05,107320.0,107310.0,0.6748801]
[1762162735138,0.06638945,107340.0,107330.0,0.1251108]
[1762162735437,0.06638945,107340.0,107330.0,0.5776417]
[1762162735930,0.06638945,107340.0,107330.0,0.4844509]
[1762162736334,0.06938945,107340.0,107330.0,0.5776417]
[1762162736729,0.07038945,107340.0,107330.0,0.5776417]
[1762162737334,0.004,107340.0,107330.0,1.0331726]
[1762162738038,0.004,107340.0,107330.0,1.2660926]
[1762162739237,0.06636835,107360.0,107350.0,0.03192]
[1762162739437,0.06636835,107360.0,107350.0,0.4844509]
[1762162740542,0.16009925,107360.0,107350.0,0.4844509]
[1762162740841,0.16009925,107360.0,107350.0,0.39272]
[1762162741731,0.16609925,107360.0,107350.0,0.39272]
[1762162741938,0.16609925,107360.0,107340.0,0.3608]
[1762162741939,0.01339,107350.0,107340.0,0.3608]
[1762162742238,0.05683,107340.0,107330.0,0.8063709]
[1762162742435,0.2402918,107340.0,107320.0,0.3608]
[1762162742635,0.1485609,107330.0,107320.0,0.4844509]
[1762162742843,0.05683,107330.0,107320.0,0.4844509]
[1762162743244,0.1485609,107330.0,107320.0,0.4844509]
[1762162743645,0.1485609,107330.0,107320.0,0.4854509]
[1762162744147,0.1485609,107330.0,107320.0,0.39372]
[1762162744345,0.1485609,107330.0,107320.0,0.4854509]
[1762162744540,0.05683,107330.0,107320.0,0.4854509]
[1762162744945,0.1485609,107330.0,107320.0,0.39372]
[1762162745140,0.1485609,107330.0,107320.0,0.4854509]
[1762162745340,0.1485609,107330.0,107320.0,0.39372]
[1762162745548,0.1485609,107330.0,107320.0,0.4854509]
[1762162745747,0.1485609,107330.0,107320.0,0.39372]
[1762162746047,0.1485609,107330.0,107320.0,0.4854509]
[1762162746744,0.05683,107330.0,107320.0,0.39372]
[1762162746941,0.05683,107330.0,107320.0,0.4854509]
[1762162747849,0.05683,107330.0,107320.0,0.39372]
[1762162748041,0.05683,107330.0,107320.0,0.4854509]
[1762162749746,0.1485609,107330.0,107320.0,0.4854509]
[1762162751449,0.1485609,107330.0,107320.0,0.39372]
[1762162751749,0.1485609,107330.0,107320.0,0.4854509]
[1762162754449,0.05683,107330.0,107320.0,0.4854509]
[1762162755352,0.05683,107330.0,107320.0,0.39372]
[1762162755553,0.05683,107330.0,107320.0,0.4854509]
[1762162755953,0.1485609,107330.0,107320.0,0.4854509]
[1762162757546,0.05683,107330.0,107320.0,0.4854509]
[1762162757845,0.1485609,107330.0,107320.0,0.4854509]
[1762162758950,0.1485609,107330.0,107320.0,0.03292]
[1762162759253,0.8312409,107330.0,107320.0,0.03292]
[1762162760754,0.4704409,107330.0,107320.0,0.1246509]
[1762162762355,0.5448134,107330.0,107320.0,0.1246509]
[1762162763553,0.5448134,107330.0,107320.0,0.03292]
[1762162763962,0.5448134,107330.0,107320.0,0.001]
[1762162764163,0.9056134,107330.0,107320.0,0.001]
[1762162769163,0.9056134,107330.0,107300.0,0.45572114]
[1762162769164,0.9973443,107330.0,107300.0,0.45572114]
[1762162769369,0.9973443,107330.0,107300.0,0.37995024]
[1762162769370,0.1497209,107310.0,107300.0,0.37995024]
[1762162769569,0.4716409,107310.0,107300.0,0.37995024]
[1762162769870,0.4716409,107310.0,107300.0,0.39591024]
[1762162770268,0.4716409,107310.0,107300.0,0.40391024]
[1762162770568,0.48109204,107310.0,107300.0,0.40791024]
[1762162771270,0.48109204,107310.0,107300.0,0.04711024]
[1762162771872,0.48109204,107310.0,107300.0,0.03911024]
[1762162772170,0.48109204,107310.0,107300.0,0.04211024]
[1762162772371,0.48109204,107310.0,107300.0,0.03811024]
[1762162772571,0.48109204,107310.0,107300.0,0.03911024]
[1762162773171,0.48109204,107310.0,107300.0,0.02315024]
[1762162774369,0.48109204,107310.0,107300.0,0.00719024]
[1762162774572,0.84189204,107310.0,107300.0,0.00719024]
[1762162775468,0.84189204,107310.0,107300.0,0.03911024]
[1762162775672,0.7500868,107310.0,107300.0,0.03911024]
[1762162775972,0.3892868,107310.0,107300.0,0.03911024]
[1762162776171,0.3892868,107310.0,107300.0,0.02315024]
[1762162776671,0.48109204,107310.0,107300.0,0.39991024]
[1762162776876,0.7500868,107310.0,107300.0,0.00719024]
[1762162777062,0.84189204,107310.0,107300.0,0.00719024]
[1762162783284,0.84189204,107310.0,107300.0,0.03911024]
[1762162783683,0.7500868,107310.0,107300.0,0.03911024]
[1762162783885,0.48109204,107310.0,107300.0,0.03911024]
[1762162784582,0.3892868,107310.0,107300.0,0.03911024]
[1762162784784,0.3892868,107310.0,107300.0,0.13091548]
[1762162785489,0.0673668,107310.0,107300.0,0.58493258]
[1762162785988,0.0673668,107310.0,107300.0,0.49171548]
[1762162786682,0.0673668,107310.0,107300.0,0.58493258]
[1762162788586,0.0673668,107310.0,107300.0,0.39991024]
[1762162788784,0.0673668,107310.0,107300.0,0.02315024]
[1762162788984,0.0673668,107310.0,107300.0,0.03911024]
[1762162789187,0.15917204,107310.0,107300.0,0.03911024]
[1762162789886,0.16217204,107310.0,107300.0,0.03611024]
[1762162791493,0.16217204,107310.0,107300.0,0.03511024]
[1762162791688,0.16417204,107310.0,107300.0,0.03511024]
[1762162793591,0.84693204,107310.0,107300.0,0.00319024]
[1762162794493,0.83783762,107310.0,107300.0,0.01662851]
[1762162795096,0.83783762,107310.0,107300.0,0.00319024]
[1762162795892,0.74603238,107310.0,107300.0,0.04709024]
[1762162796092,0.83783762,107310.0,107300.0,0.04709024]
[1762162797294,0.74603238,107310.0,107300.0,0.04709024]
[1762162797489,0.38523238,107310.0,107300.0,0.40789024]
[1762162798687,0.38523238,107310.0,107300.0,0.50110724]
[1762162798888,0.38523238,107310.0,107300.0,0.49969548]
[1762162799094,0.38523238,107310.0,107300.0,0.40789024]
[1762162800494,0.38523238,107310.0,107300.0,0.50110724]
[1762162800694,0.06327238,107310.0,107300.0,0.59291248]
[1762162800897,0.06327238,107310.0,107300.0,0.49969548]
[1762162801098,0.15507762,107310.0,107300.0,0.04709024]
[1762162801287,0.51587762,107310.0,107300.0,0.00319024]
[1762162804196,0.67067762,107310.0,107300.0,0.00319024]
[1762162804593,0.51587762,107310.0,107300.0,0.00319024]
[1762162807906,0.42407238,107310.0,107300.0,0.00319024]
[1762162808099,0.51587762,107310.0,107300.0,0.00319024]
[1762162810205,0.05642,107290.0,107280.0,0.4047]
[1762162810506,0.37834,107290.0,107280.0,0.4047]
[1762162810706,0.05642,107280.0,107270.0,0.4047]
[1762162811204,0.1483361,107280.0,107270.0,0.4047]
[1762162812603,0.1483361,107280.0,107270.0,0.4097]
[1762162813105,0.1483361,107280.0,107270.0,0.4107]
[1762162813405,0.22274326,107280.0,107270.0,0.3668]
[1762162813805,0.22274326,107280.0,107270.0,0.38782]
[1762162814007,0.22274326,107280.0,107270.0,0.40703]
[1762162814207,0.58354326,107280.0,107270.0,0.02502]
[1762162814407,0.58354326,107280.0,107270.0,0.004]
[1762162815809,0.58354326,107280.0,107270.0,0.02502]
[1762162816007,0.13093802,107280.0,107270.0,0.04623]
[1762162816310,0.45289802,107280.0,107270.0,0.40703]
[1762162817205,0.54470326,107280.0,107270.0,0.3648]
[1762162817611,0.54470326,107280.0,107270.0,0.38582]
[1762162818010,0.45289802,107280.0,107270.0,0.40703]
[1762162820709,0.45289802,107280.0,107270.0,0.5002728]
[1762162822211,0.45289802,107280.0,107270.0,0.40703]
[1762162823013,0.45289802,107280.0,107270.0,0.5002728]
[1762162823205,0.45289802,107280.0,107270.0,0.40703]
[1762162825108,0.13093802,107280.0,107270.0,0.40703]
[1762162825311,0.00011086,107280.0,107270.0,0.92316804]
[1762162825507,0.04398086,107280.0,107270.0,0.92316804]
[1762162825707,0.05742086,107280.0,107270.0,0.91407804]
[1762162826607,0.05742086,107280.0,107270.0,0.59207804]
[1762162826811,0.05742086,107280.0,107270.0,0.91435804]
[1762162827414,0.1492261,107280.0,107270.0,0.40703]
[1762162827913,0.4714661,107280.0,107270.0,0.40703]
[1762162829817,0.1492261,107280.0,107270.0,0.40703]
[1762162830418,0.14927341,107280.0,107270.0,0.40703]
[1762162830617,0.14927341,107280.0,107270.0,0.49888255]
[1762162831116,0.05742086,107280.0,107270.0,0.59212535]
[1762162831614,0.14927341,107280.0,107270.0,0.3648]
[1762162831818,0.05742086,107280.0,107270.0,0.04726]
[1762162832510,0.14927341,107280.0,107270.0,0.04726]
[1762162832709,0.14927341,107280.0,107270.0,0.04526]
[1762162832912,0.14927341,107280.0,107270.0,0.04826]
[1762162833714,0.14927341,107280.0,107270.0,0.04526]
[1762162834017,0.05742086,107280.0,107270.0,0.04326]
[1762162834317,0.24112596,107280.0,107270.0,0.04326]
[1762162835119,0.14927341,107280.0,107270.0,0.13511255]
[1762162835619,0.14927341,107280.0,107270.0,0.04326]
[1762162835808,0.05742086,107280.0,107270.0,0.49591255]
[1762162836011,0.14927341,107280.0,107270.0,0.49591255]
[1762162836818,0.05742086,107280.0,107270.0,0.49591255]
[1762162837420,0.05742086,107280.0,107270.0,0.50500255]
[1762162837820,0.05742086,107280.0,107270.0,0.49591255]
[1762162838621,0.05742086,107280.0,107270.0,0.58915505]
[1762162838927,0.00011086,107280.0,107270.0,0.92072505]
[1762162839723,0.02239086,107280.0,107270.0,0.92072505]
[1762162840221,0.04417086,107280.0,107270.0,0.82748255]
[1762162840926,0.05815086,107280.0,107270.0,0.81839255]
[1762162841819,0.05815086,107280.0,107270.0,0.91163515]
[1762162842320,0.05815086,107280.0,107270.0,0.92072515]
[1762162842824,0.04417086,107280.0,107270.0,0.92072515]
[1762162845626,0.02239086,107280.0,107270.0,0.92072525]
[1762162845928,0.04411086,107280.0,107270.0,0.92072525]
[1762162846526,0.04411086,107280.0,107270.0,0.59824525]
[1762162846721,0.04411086,107280.0,107270.0,0.92060525]
[1762162848625,0.00011086,107280.0,107270.0,1.0124578]
[1762162849024,8.6e-07,107280.0,107270.0,1.2454978]
[1762162849427,8.6e-07,107280.0,107270.0,1.0124578]
[1762162849626,8.6e-07,107280.0,107270.0,1.2454978]
[1762162852431,0.39007827,107310.0,107300.0,0.04372]
[1762162852632,0.39007827,107310.0,107300.0,0.49637255]
[1762162852934,0.05418827,107310.0,107300.0,0.5044165]
[1762162853128,0.05418827,107310.0,107300.0,0.6881216]
[1762162853330,0.05418827,107310.0,107300.0,0.5949051]
[1762162853527,0.05418827,107310.0,107300.0,0.5044165]
[1762162853733,0.05418827,107310.0,107300.0,0.6881216]
[1762162853935,0.03246827,107310.0,107300.0,0.6881216]
[1762162854130,0.06018827,107310.0,107300.0,0.6881216]
[1762162854430,0.06218827,107310.0,107300.0,0.6881216]
[1762162856635,0.05286,107310.0,107300.0,0.6881216]
[1762162856835,0.008,107310.0,107300.0,0.77997415]
[1762162857036,0.38061,107330.0,107320.0,0.04028]
[1762162857226,0.38977716,107330.0,107320.0,0.49293255]
[1762162858135,0.38977716,107330.0,107320.0,0.58613155]
[1762162858337,0.38977716,107330.0,107320.0,0.60413155]
[1762162858940,0.06745716,107330.0,107320.0,0.60413155]
[1762162859141,0.06745716,107330.0,107320.0,0.51093255]
[1762162859337,0.06845716,107330.0,107320.0,0.61513155]
[1762162860039,0.06845716,107330.0,107320.0,0.7069841]
[1762162860638,0.06845716,107330.0,107320.0,0.61513155]
[1762162860835,0.06845716,107330.0,107320.0,0.43008]
[1762162861140,0.16030971,107330.0,107320.0,0.029]
[1762162861835,0.16030971,107330.0,107320.0,0.06928]
[1762162861836,0.39069716,107330.0,107320.0,0.06928]
[1762162862041,0.39069716,107330.0,107320.0,0.16113255]
[1762162862441,0.48254971,107330.0,107320.0,0.16113255]
[1762162863135,0.39069716,107330.0,107320.0,0.16113255]
[1762162863535,0.48254971,107330.0,107320.0,0.06928]
[1762162863737,0.48254971,107330.0,107320.0,0.04914]
[1762162863942,0.48254971,107330.0,107320.0,0.029]
[1762162865141,0.48254971,107330.0,107320.0,0.06928]
[1762162869248,0.48254971,107330.0,107320.0,0.25433155]
[1762162869750,0.48254971,107330.0,107320.0,0.61513155]
[1762162870548,0.48254971,107330.0,107320.0,0.52193255]
[1762162870848,0.39069716,107330.0,107320.0,0.7069841]
[1762162871039,0.06845716,107330.0,107320.0,0.7069841]
[1762162871242,0.06845716,107330.0,107320.0,0.52193255]
[1762162871441,0.16030971,107330.0,107320.0,0.52193255]
[1762162872349,0.16030971,107330.0,107320.0,0.61513145]
[1762162872749,0.16030971,107330.0,107320.0,0.52193255]
[1762162874046,0.16030971,107330.0,107320.0,0.16113255]
[1762162874352,0.06845716,107330.0,107320.0,0.52193255]
[1762162874552,0.16030971,107330.0,107320.0,0.52193255]
[1762162875853,0.16030971,107330.0,107320.0,0.61513145]
[1762162876052,0.001,107330.0,107320.0,1.032054]
[1762162877253,0.04507,107330.0,107320.0,1.032054]
[1762162878553,0.05775,107330.0,107320.0,1.032054]
[1762162878847,0.05775,107330.0,107320.0,1.028984]
[1762162879256,0.001,107330.0,107320.0,1.028984]
[1762162880054,0.001,107330.0,107320.0,0.8452789]
[1762162880251,0.001,107330.0,107320.0,1.028984]
[1762162881855,0.01343,107350.0,107340.0,0.1334616]
[1762162881856,0.0575,107350.0,107340.0,0.1334616]
[1762162882154,0.0575,107350.0,107340.0,0.6779667]
[1762162882357,0.0575,107350.0,107340.0,0.5847851]
[1762162882558,0.0575,107350.0,107340.0,0.6779667]
[1762162882758,0.0575,107350.0,107340.0,0.58611415]
[1762162883057,0.0575,107350.0,107340.0,0.49293255]
[1762162883556,0.0615,107350.0,107340.0,0.49293255]
[1762162883752,0.0725,107350.0,107340.0,0.49293255]
[1762162884057,0.08176961,107350.0,107340.0,0.49293255]
[1762162884456,0.08176961,107350.0,107340.0,0.40108]
[1762162884750,0.08176961,107350.0,107340.0,0.49293255]
[1762162884952,0.17362216,107350.0,107340.0,0.49293255]
[1762162885256,0.17362216,107350.0,107340.0,0.40108]
[1762162888957,0.17362216,107350.0,107340.0,0.04028]
[1762162890657,0.08176961,107350.0,107340.0,0.04028]
[1762162890859,0.17362216,107350.0,107340.0,0.04028]
[1762162892360,0.17351032,107350.0,107340.0,0.04028]
[1762162893558,0.05774,107340.0,107330.0,0.40108]
[1762162895462,0.05874,107340.0,107330.0,0.40108]
[1762162895659,0.06674,107340.0,107330.0,0.40108]
[1762162896363,0.06674,107340.0,107330.0,0.4942702]
[1762162897463,0.06674,107340.0,107330.0,0.40108]
[1762162906469,0.15848071,107340.0,107330.0,0.40108]
[1762162907168,0.06674,107340.0,107330.0,0.40108]
[1762162907669,0.38862,107340.0,107330.0,0.40108]
[1762162908869,0.48036071,107340.0,107330.0,0.40108]
[1762162910064,0.35229,107340.0,107330.0,0.49282071]